Workbook

Sheet +NZD
AH2: Pair | AI2: BUY | AJ2: SELL
B3: AUDCAD | C3: AUDJPY | D3: AUDNZD | E3: AUDUSD | F3: CADCHF | G3: CADJPY | H3: CHFJPY | I3: EURAUD | J3: EURCAD | K3: EURCHF | L3: EURGBP | M3: EURJPY | N3: GBPCAD | O3: GBPAUD | P3: GBPNZD | Q3: GBPCHF | R3: GBPJPY | S3: GBPUSD | T3: NZDJPY | U3: NZDUSD | V3: USDCAD | W3: USDCHF | X3: USDJPY | Y3: AUDCHF | Z3: EURUSD | AA3: EURNZD | AB3: NZDCAD | AC3: NZDCHF | AH3: AUDCAD | AI3: =HLOOKUP(LEFT(AH3,3),$C$17:$J$18,2,FALSE) -> 3.428571429 | AJ3: =HLOOKUP(RIGHT(AH3,3),$C$17:$J$18,2,FALSE) -> 5
A4: High | B4: =[1]!AUDCAD -> 1.0617 | C4: =[1]!AUDJPY -> 99.84 | D4: =[1]!AUDNZD -> 1.2642 | E4: =[1]!AUDUSD -> 1.0414 | F4: =[1]!CADCHF -> 0.9267 | G4: =[1]!CADJPY -> 94.34 | H4: =[1]!CHFJPY -> 102.28 | I4: =[1]!EURAUD -> 1.2618 | J4: =[1]!EURCAD -> 1.3362 | K4: =[1]!EURCHF -> 1.2334 | L4: =[1]!EURGBP -> 0.866 | M4: =[1]!EURJPY -> 125.81 | N4: =[1]!GBPCAD -> 1.5479 | O4: =[1]!GBPAUD -> 1.4621 | P4: =[1]!GBPNZD -> 1.8434 | Q4: =[1]!GBPCHF -> 1.4316 | R4: =[1]!GBPJPY -> 145.85 | S4: =[1]!GBPUSD -> 1.5177 | T4: =[1]!NZDJPY -> 79.05 | U4: =[1]!NZDUSD -> 0.8279 | V4: =[1]!USDCAD -> 1.0232 | W4: =[1]!USDCHF -> 0.9478 | X4: =[1]!USDJPY -> 96.28 | Y4: =[1]!AUDCHF -> 0.9832 | Z4: =[1]!EURUSD -> 1.3106 | AA4: =[1]!EURNZD -> 1.5907 | AB4: =[1]!NZDCAD -> 0.8433 | AC4: =[1]!NZDCHF -> 0.7779 | AH4: AUDJPY | AI4: =HLOOKUP(LEFT(AH4,3),$C$17:$J$18,2,FALSE) -> 3.428571429 | AJ4: =HLOOKUP(RIGHT(AH4,3),$C$17:$J$18,2,FALSE) -> 6.571428571
A5: Ask | B5: =[2]!AUDCAD -> 1.0617 | C5: =[2]!AUDJPY -> 99.2 | D5: =[2]!AUDNZD -> 1.2595 | E5: =[2]!AUDUSD -> 1.0411 | F5: =[2]!CADCHF -> 0.9213 | G5: =[2]!CADJPY -> 93.51 | H5: =[2]!CHFJPY -> 101.52 | I5: =[2]!EURAUD -> 1.2568 | J5: =[2]!EURCAD -> 1.3337 | K5: =[2]!EURCHF -> 1.2276 | L5: =[2]!EURGBP -> 0.8653 | M5: =[2]!EURJPY -> 124.59 | N5: =[2]!GBPCAD -> 1.5415 | O5: =[2]!GBPAUD -> 1.4531 | P5: =[2]!GBPNZD -> 1.8284 | Q5: =[2]!GBPCHF -> 1.4191 | R5: =[2]!GBPJPY -> 144.05 | S5: =[2]!GBPUSD -> 1.5114 | T5: =[2]!NZDJPY -> 78.9 | U5: =[2]!NZDUSD -> 0.8276 | V5: =[2]!USDCAD -> 1.0199 | W5: =[2]!USDCHF -> 0.9389 | X5: =[2]!USDJPY -> 95.31 | Y5: =[2]!AUDCHF -> 0.9778 | Z5: =[2]!EURUSD -> 1.3077 | AA5: =[2]!EURNZD -> 1.5815 | AB5: =[2]!NZDCAD -> 0.8442 | AC5: =[2]!NZDCHF -> 0.7777 | AE5: 0 | AF5: 0 | AH5: AUDNZD | AI5: 3.428571429 | AJ5: 4.285714286
A6: Bid | B6: =[3]!AUDCAD -> 1.0608 | C6: =[3]!AUDJPY -> 99.16 | D6: =[3]!AUDNZD -> 1.2566 | E6: =[3]!AUDUSD -> 1.0408 | F6: =[3]!CADCHF -> 0.9206 | G6: =[3]!CADJPY -> 93.42 | H6: =[3]!CHFJPY -> 101.47 | I6: =[3]!EURAUD -> 1.2557 | J6: =[3]!EURCAD -> 1.3328 | K6: =[3]!EURCHF -> 1.2272 | L6: =[3]!EURGBP -> 0.865 | M6: =[3]!EURJPY -> 124.56 | N6: =[3]!GBPCAD -> 1.5401 | O6: =[3]!GBPAUD -> 1.4512 | P6: =[3]!GBPNZD -> 1.825 | Q6: =[3]!GBPCHF -> 1.4184 | R6: =[3]!GBPJPY -> 143.98 | S6: =[3]!GBPUSD -> 1.5111 | T6: =[3]!NZDJPY -> 78.76 | U6: =[3]!NZDUSD -> 0.8273 | V6: =[3]!USDCAD -> 1.0196 | W6: =[3]!USDCHF -> 0.9386 | X6: =[3]!USDJPY -> 95.28 | Y6: =[3]!AUDCHF -> 0.9764 | Z6: =[3]!EURUSD -> 1.3074 | AA6: =[3]!EURNZD -> 1.5791 | AB6: =[3]!NZDCAD -> 0.8428 | AC6: =[3]!NZDCHF -> 0.7758 | AE6: 3 | AF6: 1 | AH6: AUDUSD | AI6: 3.428571429 | AJ6: 3.285714286
A7: Low | B7: =[4]!AUDCAD -> 1.0559 | C7: =[4]!AUDJPY -> 98.93 | D7: =[4]!AUDNZD -> 1.256 | E7: =[4]!AUDUSD -> 1.036 | F7: =[4]!CADCHF -> 0.9191 | G7: =[4]!CADJPY -> 93.23 | H7: =[4]!CHFJPY -> 101.25 | I7: =[4]!EURAUD -> 1.2511 | J7: =[4]!EURCAD -> 1.3282 | K7: =[4]!EURCHF -> 1.2255 | L7: =[4]!EURGBP -> 0.8601 | M7: =[4]!EURJPY -> 124.2 | N7: =[4]!GBPCAD -> 1.5365 | O7: =[4]!GBPAUD -> 1.4479 | P7: =[4]!GBPNZD -> 1.8218 | Q7: =[4]!GBPCHF -> 1.4172 | R7: =[4]!GBPJPY -> 143.78 | S7: =[4]!GBPUSD -> 1.5067 | T7: =[4]!NZDJPY -> 78.5 | U7: =[4]!NZDUSD -> 0.8191 | V7: =[4]!USDCAD -> 1.0179 | W7: =[4]!USDCHF -> 0.9378 | X7: =[4]!USDJPY -> 95.07 | Y7: =[4]!AUDCHF -> 0.9733 | Z7: =[4]!EURUSD -> 1.2998 | AA7: =[4]!EURNZD -> 1.5766 | AB7: =[4]!NZDCAD -> 0.8368 | AC7: =[4]!NZDCHF -> 0.7723 | AE7: 10 | AF7: 2 | AH7: CADCHF | AI7: 5 | AJ7: 6.285714286
AE8: 25 | AF8: 3 | AH8: CADJPY | AI8: 5 | AJ8: 6.571428571
A9: PIP Range | B9: =($B4:$AC4-$B7:$AC7)*100000 -> 580 | C9: =($B4:$AC4-$B7:$AC7)*1000 -> 910 | D9: =($B4:$AC4-$B7:$AC7)*100000 -> 820 | E9: 540 | F9: 760 | G9: =($B4:$AC4-$B7:$AC7)*1000 -> 1110 | H9: =($B4:$AC4-$B7:$AC7)*1000 -> 1030 | I9: =($B4:$AC4-$B7:$AC7)*100000 -> 1070 | J9: 800 | K9: 790 | L9: 590 | M9: =($B4:$AC4-$B7:$AC7)*1000 -> 1610 | N9: 1140 | O9: 1420 | P9: 2160 | Q9: 1440 | R9: =($B4:$AC4-$B7:$AC7)*1000 -> 2070 | S9: 1100 | T9: =($B4:$AC4-$B7:$AC7)*1000 -> 550 | U9: 880 | V9: 530 | W9: 1000 | X9: =($B4:$AC4-$B7:$AC7)*1000 -> 1210 | Y9: 990 | Z9: 1080 | AA9: 1410 | AB9: 650 | AC9: =($B4:$AC4-$B7:$AC7)*100000 -> 560 | AE9: 40 | AF9: 4 | AH9: CHFJPY | AI9: 6.285714286 | AJ9: 6.571428571
A10: Bid Ratio | B10: =($B6:$AC6-$B7:$AC7)/$B22:$AC22*100000 -> 0.3230221615 | C10: =($B6:$AC6-$B7:$AC7)/$B22:$AC22*1000 -> 0.1874074074 | D10: =($B6:$AC6-$B7:$AC7)/$B22:$AC22*100000 -> 0.03501738698 | E10: 0.3560192085 | F10: 0.1321824805 | G10: =($B6:$AC6-$B7:$AC7)/$B22:$AC22*1000 -> 0.1640148755 | H10: =($B6:$AC6-$B7:$AC7)/$B22:$AC22*1000 -> 0.1608925319 | I10: 0.4380054645 | J10: 0.4423662858 | K10: 0.1598342027 | L10: 0.3641191974 | M10: =($B6:$AC6-$B7:$AC7)/$B22:$AC22*1000 -> 0.4036338798 | N10: 0.363509687 | O10: 0.1525318761 | P10: 0.4174819231 | Q10: 0.1476179831 | R10: =($B6:$AC6-$B7:$AC7)/$B22:$AC22*1000 -> 0.2674863388 | S10: 0.4146933819 | T10: =($B6:$AC6-$B7:$AC7)/$B22:$AC22*1000 -> 0.1660519126 | U10: 0.4775073136 | V10: 0.08719103604 | W10: 0.05764861732 | X10: =($B6:$AC6-$B7:$AC7)/$B22:$AC22*1000 -> 0.1435860656 | Y10: 0.277362905 | Z10: 0.7037037037 | AA10: 0.2724098913 | AB10: 0.3512170889 | AC10: 0.2442533256 | AE10: 50 | AF10: 5 | AH10: EURAUD | AI10: 3.714285714 | AJ10: 3.428571429
AE11: 60 | AF11: 6 | AH11: EURCAD | AI11: 3.714285714 | AJ11: 5
A12: Relative | B12: =LEFT(B3,3) -> AUD | C12: =LEFT(C3,3) -> AUD | D12: AUD | E12: AUD | F12: =LEFT(F3,3) -> CAD | G12: CAD | H12: CHF | I12: EUR | J12: EUR | K12: EUR | L12: EUR | M12: EUR | N12: GBP | O12: GBP | P12: GBP | Q12: GBP | R12: GBP | S12: GBP | T12: NZD | U12: NZD | V12: USD | W12: USD | X12: USD | Y12: =LEFT(Y3,3) -> AUD | Z12: =LEFT(Z3,3) -> EUR | AA12: =LEFT(AA3,3) -> EUR | AB12: =LEFT(AB3,3) -> NZD | AC12: =LEFT(AC3,3) -> NZD | AE12: 75 | AF12: 7 | AH12: EURCHF | AI12: 3.714285714 | AJ12: 6.285714286
A13: Strength | B13: =LOOKUP(100*B10,$AE5:$AE14,$AF5:$AF14) -> 3 | C13: =LOOKUP(100*C10,$AE5:$AE14,$AF5:$AF14) -> 2 | D13: 1 | E13: 3 | F13: =LOOKUP(100*F10,$AE5:$AE14,$AF5:$AF14) -> 2 | G13: 2 | H13: 2 | I13: 4 | J13: 4 | K13: 2 | L13: 3 | M13: 4 | N13: 3 | O13: 2 | P13: 4 | Q13: 2 | R13: 3 | S13: 4 | T13: 2 | U13: 4 | V13: 1 | W13: 1 | X13: 2 | Y13: =LOOKUP(100*Y10,$AE5:$AE14,$AF5:$AF14) -> 3 | Z13: =LOOKUP(100*Z10,$AE5:$AE14,$AF5:$AF14) -> 6 | AA13: =LOOKUP(100*AA10,$AE5:$AE14,$AF5:$AF14) -> 3 | AB13: =LOOKUP(100*AB10,$AE5:$AE14,$AF5:$AF14) -> 3 | AC13: =LOOKUP(100*AC10,$AE5:$AE14,$AF5:$AF14) -> 2 | AE13: 90 | AF13: 8 | AH13: EURGBP | AI13: 3.714285714 | AJ13: 3.428571429
B14: =RIGHT(B3,3) -> CAD | C14: =RIGHT(C3,3) -> JPY | D14: NZD | E14: USD | F14: =RIGHT(F3,3) -> CHF | G14: JPY | H14: JPY | I14: AUD | J14: CAD | K14: CHF | L14: GBP | M14: JPY | N14: CAD | O14: AUD | P14: NZD | Q14: CHF | R14: JPY | S14: USD | T14: JPY | U14: USD | V14: CAD | W14: CHF | X14: JPY | Y14: =RIGHT(Y3,3) -> CHF | Z14: =RIGHT(Z3,3) -> USD | AA14: =RIGHT(AA3,3) -> NZD | AB14: =RIGHT(AB3,3) -> CAD | AC14: =RIGHT(AC3,3) -> CHF | AE14: 97 | AF14: 9 | AH14: EURJPY | AI14: 3.714285714 | AJ14: 6.571428571
B15: =9-B13 -> 6 | C15: =9-C13 -> 7 | D15: 8 | E15: 6 | F15: =9-F13 -> 7 | G15: 7 | H15: 7 | I15: 5 | J15: 5 | K15: 7 | L15: 6 | M15: 5 | N15: 6 | O15: 7 | P15: 5 | Q15: 7 | R15: 6 | S15: 5 | T15: 7 | U15: 5 | V15: 8 | W15: 8 | X15: 7 | Y15: =9-Y13 -> 6 | Z15: =9-Z13 -> 3 | AA15: =9-AA13 -> 6 | AB15: =9-AB13 -> 6 | AC15: =9-AC13 -> 7 | AH15: GBPCAD | AI15: 3.428571429 | AJ15: 5
AH16: GBPAUD | AI16: 3.428571429 | AJ16: 3.428571429
A17: Total Strength | C17: USD | D17: EUR | E17: GBP | F17: CHF | G17: NZD | H17: AUD | I17: JPY | J17: CAD | L17: Strong | AH17: GBPCAD | AI17: 3.428571429 | AJ17: 5
C18: =(V13+W13+X13+E15+S15+U15+Z15)/C19 -> 3.285714286 | D18: =(I13+J13+K13+L13+M13+Z13+AA13)/D19 -> 3.714285714 | E18: =(N13+O13+P13+Q13+R13+S13+L15)/E19 -> 3.428571429 | F18: =(F15+H13+K15+Q15+W15+Y15+AC15)/F19 -> 6.285714286 | G18: =(T13+U13+D15+P15+AA15+AB13+AC13)/G19 -> 4.285714286 | H18: =(B13+C13+D13+E13+I15+O15+Y13)/H19 -> 3.428571429 | I18: =(C15+G15+H15+M15+R15+T15+X15)/I19 -> 6.571428571 | J18: =(F13+G13+B15+J15+N15+V15+AB15)/J19 -> 5 | L18: Rising | AH18: GBPCHF | AI18: 3.428571429 | AJ18: 6.285714286
B19: # of evaluation points | C19: =COUNTIF($B$12:$AC$15,"=USD") -> 7 | D19: =COUNTIF($B$12:$AC$15,"=EUR") -> 7 | E19: =COUNTIF($B$12:$AC$15,"=GBP") -> 7 | F19: =COUNTIF($B$12:$AC$15,"=CHF") -> 7 | G19: =COUNTIF($B$12:$AC$15,"=NZD") -> 7 | H19: =COUNTIF($B$12:$AC$15,"=AUD") -> 7 | I19: =COUNTIF($B$12:$AC$15,"=JPY") -> 7 | J19: =COUNTIF($B$12:$AC$15,"=CAD") -> 7 | L19: Neutral | AH19: GBPJPY | AI19: 3.428571429 | AJ19: 6.571428571
L20: Weak | Z20: eurusd | AH20: GBPUSD | AI20: 3.428571429 | AJ20: 3.285714286
B21: =B9*C41*F41 -> 55416.68 | C21: =C9*C46*F46 -> 107467.36 | D21: =D9*C52*F52 -> 69362.16 | E21: =E9*C42*F42 -> 58050 | F21: =F9*C39*F39 -> 97067.2 | G21: =G9*C40*F40 -> 138876.54 | H21: =H9*C35*F35 -> 109175.88 | I21: =I9*C43*F43 -> 147666.42 | J21: =J9*C37*F37 -> 111504 | K21: =K9*C31*F31 -> 107652.51 | L21: =L9*C30*F30 -> 63544.18 | M21: =M9*C32*F32 -> 261629.83 | N21: =N9*C38*F38 -> 166837.86 | O21: =O9*C44*F44 -> 95128.64 | P21: =P9*C49*F49 -> 408430.08 | Q21: =Q9*C33*F33 -> 256741.92 | R21: =R9*C34*F34 -> 401252.94 | S21: =S9*C27*F27 -> 150260 | T21: =T9*C51*F51 -> 50910.75 | U21: =U9*C48*F48 -> 74272 | V21: =V9*C36*F36 -> 39398.08 | W21: =(W9*C28*F28) -> 104442 | X21: =(X9*C29*F29) -> 119909.79 | Y21: =(Y9*C45*F45) -> 128380.23 | Z21: =(Z9*C26*F26) -> 144936 | AA21: =(AA9*C47*F47) -> 222678.48 | AB21: =(AB9*C53*F53) -> 55146 | AC21: =(AC9*C50*F50) -> 56641.76 | AH21: NZDJPY | AI21: 4.285714286 | AJ21: 6.571428571
B22: =(Z21/$B21:$AC21)*$B9:$AC9 -> 1516.923785 | C22: =(Z21/$B21:$AC21)*$B9:$AC9 -> 1227.272727 | D22: =(Z21/$B21:$AC21)*$B9:$AC9 -> 1713.43453 | E22: =(Z21/$B21:$AC21)*$B9:$AC9 -> 1348.24186 | F22: =(Z21/$B21:$AC21)*$B9:$AC9 -> 1134.794864 | G22: =(Z21/$B21:$AC21)*$B9:$AC9 -> 1158.43151 | H22: =(Z21/$B21:$AC21)*$B9:$AC9 -> 1367.372354 | I22: =(Z21/$B21:$AC21)*$B9:$AC9 -> 1050.215208 | J22: =(Z21/$B21:$AC21)*$B9:$AC9 -> 1039.862247 | K22: =(Z21/$B21:$AC21)*$B9:$AC9 -> 1063.60214 | L22: =(Z21/$B21:$AC21)*$B9:$AC9 -> 1345.713172 | M22: =(Z21/$B21:$AC21)*$B9:$AC9 -> 891.8973804 | N22: =(Z21/$B21:$AC21)*$B9:$AC9 -> 990.3449972 | O22: =(Z21/$B21:$AC21)*$B9:$AC9 -> 2163.482207 | P22: =(Z21/$B21:$AC21)*$B9:$AC9 -> 766.5002539 | Q22: =(Z21/$B21:$AC21)*$B9:$AC9 -> 812.9090878 | R22: =(Z21/$B21:$AC21)*$B9:$AC9 -> 747.7017365 | S22: =(Z21/$B21:$AC21)*$B9:$AC9 -> 1061.02489 | T22: =(Z21/$B21:$AC21)*$B9:$AC9 -> 1565.775401 | U22: =(Z21/$B21:$AC21)*$B9:$AC9 -> 1717.251185 | V22: =(Z21/$B21:$AC21)*$B9:$AC9 -> 1949.741713 | W22: =(Z21/$B21:$AC21)*$B9:$AC9 -> 1387.717585 | X22: =(Z21/$B21:$AC21)*$B9:$AC9 -> 1462.537463 | Y22: =(Z21/$B21:$AC21)*$B9:$AC9 -> 1117.669286 | Z22: =(Z21/$B21:$AC21)*$B9:$AC9 -> 1080 | AA22: =(Z21/$B21:$AC21)*$B9:$AC9 -> 917.7346639 | AB22: =(Z21/$B21:$AC21)*$B9:$AC9 -> 1708.34512 | AC22: =(Z21/$B21:$AC21)*$B9:$AC9 -> 1432.938525
AH24: NZDUSD | AI24: 4.285714286 | AJ24: 3.285714286
C25: pips | D25: $ | E25: % | F25: pip value | AH25: USDCAD | AI25: 3.285714286 | AJ25: 5
B26: EURUSD | C26: 134.2 | D26: 1,342.0 | E26: 0.95 | F26: 1 | AH26: USDCHF | AI26: 3.285714286 | AJ26: 6.285714286
B27: GBPUSD | C27: 136.6 | D27: 1,366.2 | E27: 0.84 | F27: 1 | AH27: USDJPY | AI27: 3.285714286 | AJ27: 6.571428571
B28: USDCHF | C28: 101.4 | D28: 1,125.8 | E28: 1.12 | F28: 1.03
B29: USDJPY | C29: 81.9 | D29: 1,016.3 | E29: 1.01 | F29: 1.21
B30: EURGBP | C30: 68.6 | D30: 1,113.5 | E30: 0.79 | F30: 1.57
B31: EURCHF | C31: 132.3 | D31: 1,469.1 | E31: 1.03 | F31: 1.03
B32: EURJPY | C32: 134.3 | D32: 1,666.7 | E32: 1.17 | F32: 1.21
B33: GBPCHF | C33: 173.1 | D33: 1,921.8 | E33: 1.18 | F33: 1.03
B34: GBPJPY | C34: 160.2 | D34: 1,987.3 | E34: 1.21 | F34: 1.21
B35: CHFJPY | C35: 87.6 | D35: 1,087.0 | E35: 0.98 | F35: 1.21
B36: USDCAD | C36: 73.6 | D36: 748 | E36: 0.75 | F36: 1.01
B37: EURCAD | C37: 138 | D37: 1,402.6 | E37: 1 | F37: 1.01
B38: GBPCAD | C38: 144.9 | D38: 1,472.3 | E38: 0.91 | F38: 1.01
B39: CADCHF | C39: 124 | D39: 1,376.3 | E39: 1.34 | F39: 1.03
B40: CADJPY | C40: 103.4 | D40: 1,282.5 | E40: 1.25 | F40: 1.21
B41: AUDCAD | C41: 94.6 | D41: 961.9 | E41: 0.96 | F41: 1.01
B42: AUDUSD | C42: 107.5 | D42: 1,074.8 | E42: 1.07 | F42: 1
B43: EURAUD | C43: 139.4 | D43: 1,388.0 | E43: 0.99 | F43: 0.99
B44: AUDGBP | C44: 63.2 | D44: 1,025.9 | E44: 1.02 | F44: 1.06
B45: AUDCHF | C45: 125.9 | D45: 1,398.0 | E45: 1.38 | F45: 1.03
B46: AUDJPY | C46: 97.6 | D46: 1,211.3 | E46: 1.2 | F46: 1.21
B47: EURNZD | C47: 207.8 | D47: 1,517.4 | E47: 1.08 | F47: 0.76
B48: NZDUSD | C48: 84.4 | D48: 844.2 | E48: 1.15 | F48: 1
B49: GBPNZD | C49: 248.8 | D49: 1,816.6 | E49: 1.13 | F49: 0.76
B50: NZDCHF | C50: 98.2 | D50: 1,090.5 | E50: 1.48 | F50: 1.03
B51: NZDJPY | C51: 76.5 | D51: 949.2 | E51: 1.28 | F51: 1.21
B52: AUDNZD | C52: 111.3 | D52: 812.5 | E52: 0.81 | F52: 0.76
B53: NZDCAD | C53: 84 | D53: 853.5 | E53: 1.17 | F53: 1.01

Sheet List1 (hidden)

Sheet 28 párový prehľad
C4: AUDCAD | D4: AUDJPY | E4: AUDNZD | F4: AUDUSD | G4: CADCHF | H4: CADJPY | I4: CHFJPY | J4: EURAUD | K4: EURCAD | L4: EURCHF | M4: EURGBP | N4: EURJPY | O4: GBPCAD | P4: GBPAUD | Q4: GBPNZD | R4: GBPCHF | S4: GBPJPY | T4: GBPUSD | U4: NZDJPY | V4: NZDUSD | W4: USDCAD | X4: USDCHF | Y4: USDJPY | Z4: AUDCHF | AA4: EURUSD | AB4: EURNZD | AC4: NZDCAD | AD4: NZDCHF
B5: High | C5: =[1]!AUDCAD -> 1.0617 | D5: =[1]!AUDJPY -> 99.84 | E5: =[1]!AUDNZD -> 1.2642 | F5: =[1]!AUDUSD -> 1.0414 | G5: =[1]!CADCHF -> 0.9267 | H5: =[1]!CADJPY -> 94.34 | I5: =[1]!CHFJPY -> 102.28 | J5: =[1]!EURAUD -> 1.2618 | K5: =[1]!EURCAD -> 1.3362 | L5: =[1]!EURCHF -> 1.2334 | M5: =[1]!EURGBP -> 0.866 | N5: =[1]!EURJPY -> 125.81 | O5: =[1]!GBPCAD -> 1.5479 | P5: =[1]!GBPAUD -> 1.4621 | Q5: =[1]!GBPNZD -> 1.8434 | R5: =[1]!GBPCHF -> 1.4316 | S5: =[1]!GBPJPY -> 145.85 | T5: =[1]!GBPUSD -> 1.5177 | U5: =[1]!NZDJPY -> 79.05 | V5: =[1]!NZDUSD -> 0.8279 | W5: =[1]!USDCAD -> 1.0232 | X5: =[1]!USDCHF -> 0.9478 | Y5: =[1]!USDJPY -> 96.28 | Z5: =[1]!AUDCHF -> 0.9832 | AA5: =[1]!EURUSD -> 1.3106 | AB5: =[1]!EURNZD -> 1.5907 | AC5: =[1]!NZDCAD -> 0.8433 | AD5: =[1]!NZDCHF -> 0.7779
B6: Ask | C6: =[2]!AUDCAD -> 1.0617 | D6: =[2]!AUDJPY -> 99.2 | E6: =[2]!AUDNZD -> 1.2595 | F6: =[2]!AUDUSD -> 1.0411 | G6: =[2]!CADCHF -> 0.9213 | H6: =[2]!CADJPY -> 93.51 | I6: =[2]!CHFJPY -> 101.52 | J6: =[2]!EURAUD -> 1.2568 | K6: =[2]!EURCAD -> 1.3337 | L6: =[2]!EURCHF -> 1.2276 | M6: =[2]!EURGBP -> 0.8653 | N6: =[2]!EURJPY -> 124.59 | O6: =[2]!GBPCAD -> 1.5415 | P6: =[2]!GBPAUD -> 1.4531 | Q6: =[2]!GBPNZD -> 1.8284 | R6: =[2]!GBPCHF -> 1.4191 | S6: =[2]!GBPJPY -> 144.05 | T6: =[2]!GBPUSD -> 1.5114 | U6: =[2]!NZDJPY -> 78.9 | V6: =[2]!NZDUSD -> 0.8276 | W6: =[2]!USDCAD -> 1.0199 | X6: =[2]!USDCHF -> 0.9389 | Y6: =[2]!USDJPY -> 95.31 | Z6: =[2]!AUDCHF -> 0.9778 | AA6: =[2]!EURUSD -> 1.3077 | AB6: =[2]!EURNZD -> 1.5815 | AC6: =[2]!NZDCAD -> 0.8442 | AD6: =[2]!NZDCHF -> 0.7777
B7: Bid | C7: =[3]!AUDCAD -> 1.0608 | D7: =[3]!AUDJPY -> 99.16 | E7: =[3]!AUDNZD -> 1.2566 | F7: =[3]!AUDUSD -> 1.0408 | G7: =[3]!CADCHF -> 0.9206 | H7: =[3]!CADJPY -> 93.42 | I7: =[3]!CHFJPY -> 101.47 | J7: =[3]!EURAUD -> 1.2557 | K7: =[3]!EURCAD -> 1.3328 | L7: =[3]!EURCHF -> 1.2272 | M7: =[3]!EURGBP -> 0.865 | N7: =[3]!EURJPY -> 124.56 | O7: =[3]!GBPCAD -> 1.5401 | P7: =[3]!GBPAUD -> 1.4512 | Q7: =[3]!GBPNZD -> 1.825 | R7: =[3]!GBPCHF -> 1.4184 | S7: =[3]!GBPJPY -> 143.98 | T7: =[3]!GBPUSD -> 1.5111 | U7: =[3]!NZDJPY -> 78.76 | V7: =[3]!NZDUSD -> 0.8273 | W7: =[3]!USDCAD -> 1.0196 | X7: =[3]!USDCHF -> 0.9386 | Y7: =[3]!USDJPY -> 95.28 | Z7: =[3]!AUDCHF -> 0.9764 | AA7: =[3]!EURUSD -> 1.3074 | AB7: =[3]!EURNZD -> 1.5791 | AC7: =[3]!NZDCAD -> 0.8428 | AD7: =[3]!NZDCHF -> 0.7758
B8: Low | C8: =[4]!AUDCAD -> 1.0559 | D8: =[4]!AUDJPY -> 98.93 | E8: =[4]!AUDNZD -> 1.256 | F8: =[4]!AUDUSD -> 1.036 | G8: =[4]!CADCHF -> 0.9191 | H8: =[4]!CADJPY -> 93.23 | I8: =[4]!CHFJPY -> 101.25 | J8: =[4]!EURAUD -> 1.2511 | K8: =[4]!EURCAD -> 1.3282 | L8: =[4]!EURCHF -> 1.2255 | M8: =[4]!EURGBP -> 0.8601 | N8: =[4]!EURJPY -> 124.2 | O8: =[4]!GBPCAD -> 1.5365 | P8: =[4]!GBPAUD -> 1.4479 | Q8: =[4]!GBPNZD -> 1.8218 | R8: =[4]!GBPCHF -> 1.4172 | S8: =[4]!GBPJPY -> 143.78 | T8: =[4]!GBPUSD -> 1.5067 | U8: =[4]!NZDJPY -> 78.5 | V8: =[4]!NZDUSD -> 0.8191 | W8: =[4]!USDCAD -> 1.0179 | X8: =[4]!USDCHF -> 0.9378 | Y8: =[4]!USDJPY -> 95.07 | Z8: =[4]!AUDCHF -> 0.9733 | AA8: =[4]!EURUSD -> 1.2998 | AB8: =[4]!EURNZD -> 1.5766 | AC8: =[4]!NZDCAD -> 0.8368 | AD8: =[4]!NZDCHF -> 0.7723
A10: 12w | B10: Volatilita | C10: 69.7 | D10: 85.5 | E10: 71.5 | F10: 108.8 | G10: 76.8 | H10: 69 | I10: 88 | J10: 104.8 | K10: 98.7 | L10: 40.7 | M10: 58.7 | N10: 105.5 | O10: 114 | P10: 132.8 | Q10: 181.3 | R10: 111.9 | S10: 104.3 | T10: 116.4 | U10: 68 | V10: 86.1 | W10: 76.6 | X10: 93.3 | Y10: 45.9 | Z10: 85.7 | AA10: 127 | AB10: 152.2 | AC10: 61.5 | AD10: 71.4
B11: Dnes | C11: =(C5-C8)*10000 -> 58 | D11: =(D5-D8)*100 -> 91 | E11: =(E5-E8)*10000 -> 82 | F11: 54 | G11: 76 | H11: =(H5-H8)*100 -> 111 | I11: =(I5-I8)*100 -> 103 | J11: 107 | K11: 80 | L11: 79 | M11: 59 | N11: =(N5-N8)*100 -> 161 | O11: 114 | P11: 142 | Q11: 216 | R11: 144 | S11: =(S5-S8)*100 -> 207 | T11: 110 | U11: =(U5-U8)*100 -> 55 | V11: 88 | W11: 53 | X11: 100 | Y11: =(Y5-Y8)*100 -> 121 | Z11: 99 | AA11: 108 | AB11: 141 | AC11: 65 | AD11: 56
C12: =1/(C10/C11) -> 0.8321377331 | D12: =1/(D10/D11) -> 1.064327485 | E12: 1.146853147 | F12: 0.4963235294 | G12: 0.9895833333 | H12: 1.608695652 | I12: 1.170454545 | J12: 1.020992366 | K12: 0.8105369807 | L12: 1.941031941 | M12: 1.005110733 | N12: 1.526066351 | O12: 1 | P12: 1.069277108 | Q12: 1.191395477 | R12: 1.286863271 | S12: 1.984659636 | T12: 0.9450171821 | U12: 0.8088235294 | V12: 1.022067364 | W12: 0.6919060052 | X12: 1.071811361 | Y12: 2.636165577 | Z12: 1.155192532 | AA12: 0.8503937008 | AB12: 0.926412615 | AC12: 1.056910569 | AD12: 0.7843137255
C16: Priemer: | D16: =SUM(C12:AD12)/28 -> 1.146190123 | F16: MIN: | G16: =MIN(C12:AD12) -> 0.4963235294 | I16: MAX: | J16: =MAX(C12:AD12) -> 2.636165577
B22: AUD | D22: AUDCAD | E22: AUDJPY | F22: AUDNZD | G22: AUDUSD | H22: EURAUD | I22: GBPAUD | J22: AUDCHF | M22: CAD | O22: AUDCAD | P22: CADCHF | Q22: CADJPY | R22: EURCAD | S22: GBPCAD | T22: USDCAD | U22: NZDCAD
C23: High | D23: =[1]!AUDCAD -> 1.0617 | E23: =[1]!AUDJPY -> 99.84 | F23: =[1]!AUDNZD -> 1.2642 | G23: =[1]!AUDUSD -> 1.0414 | H23: =[1]!EURAUD -> 1.2618 | I23: =[1]!GBPAUD -> 1.4621 | J23: =[1]!AUDCHF -> 0.9832 | N23: High | O23: =[1]!AUDCAD -> 1.0617 | P23: =[1]!CADCHF -> 0.9267 | Q23: =[1]!CADJPY -> 94.34 | R23: =[1]!EURCAD -> 1.3362 | S23: =[1]!GBPCAD -> 1.5479 | T23: =[1]!USDCAD -> 1.0232 | U23: =[1]!NZDCAD -> 0.8433
A24: Priemer | B24: =SUM(D30:J30)/7 -> 0.9693005574 | C24: Ask | D24: =[2]!AUDCAD -> 1.0617 | E24: =[2]!AUDJPY -> 99.2 | F24: =[2]!AUDNZD -> 1.2595 | G24: =[2]!AUDUSD -> 1.0411 | H24: =[2]!EURAUD -> 1.2568 | I24: =[2]!GBPAUD -> 1.4531 | J24: =[2]!AUDCHF -> 0.9778 | L24: Priemer | M24: =SUM(O30:U30)/7 -> 0.9985386105 | N24: Ask | O24: =[2]!AUDCAD -> 1.0617 | P24: =[2]!CADCHF -> 0.9213 | Q24: =[2]!CADJPY -> 93.51 | R24: =[2]!EURCAD -> 1.3337 | S24: =[2]!GBPCAD -> 1.5415 | T24: =[2]!USDCAD -> 1.0199 | U24: =[2]!NZDCAD -> 0.8442
C25: Bid | D25: =[3]!AUDCAD -> 1.0608 | E25: =[3]!AUDJPY -> 99.16 | F25: =[3]!AUDNZD -> 1.2566 | G25: =[3]!AUDUSD -> 1.0408 | H25: =[3]!EURAUD -> 1.2557 | I25: =[3]!GBPAUD -> 1.4512 | J25: =[3]!AUDCHF -> 0.9764 | N25: Bid | O25: =[3]!AUDCAD -> 1.0608 | P25: =[3]!CADCHF -> 0.9206 | Q25: =[3]!CADJPY -> 93.42 | R25: =[3]!EURCAD -> 1.3328 | S25: =[3]!GBPCAD -> 1.5401 | T25: =[3]!USDCAD -> 1.0196 | U25: =[3]!NZDCAD -> 0.8428
A26: Min | B26: =MIN(D30:J30) -> 0.4963235294 | C26: Low | D26: =[4]!AUDCAD -> 1.0559 | E26: =[4]!AUDJPY -> 98.93 | F26: =[4]!AUDNZD -> 1.256 | G26: =[4]!AUDUSD -> 1.036 | H26: =[4]!EURAUD -> 1.2511 | I26: =[4]!GBPAUD -> 1.4479 | J26: =[4]!AUDCHF -> 0.9733 | L26: Min | M26: =MIN(O30:U30) -> 0.6919060052 | N26: Low | O26: =[4]!AUDCAD -> 1.0559 | P26: =[4]!CADCHF -> 0.9191 | Q26: =[4]!CADJPY -> 93.23 | R26: =[4]!EURCAD -> 1.3282 | S26: =[4]!GBPCAD -> 1.5365 | T26: =[4]!USDCAD -> 1.0179 | U26: =[4]!NZDCAD -> 0.8368
A28: Max | B28: =MAX(D30:J30) -> 1.155192532 | C28: Volatilita | D28: 69.7 | E28: 85.5 | F28: 71.5 | G28: 108.8 | H28: 104.8 | I28: 132.8 | J28: 85.7 | L28: Max | M28: =MAX(O30:U30) -> 1.608695652 | N28: Volatilita | O28: 69.7 | P28: 76.8 | Q28: 69 | R28: 98.7 | S28: 114 | T28: 76.6 | U28: 61.5
C29: Dnes | D29: =(D23-D26)*10000 -> 58 | E29: =(E23-E26)*100 -> 91 | F29: =(F23-F26)*10000 -> 82 | G29: =(G23-G26)*10000 -> 54 | H29: =(H23-H26)*10000 -> 107 | I29: =(I23-I26)*10000 -> 142 | J29: =(J23-J26)*10000 -> 99 | N29: Dnes | O29: =(O23-O26)*10000 -> 58 | P29: =(P23-P26)*10000 -> 76 | Q29: =(Q23-Q26)*100 -> 111 | R29: =(R23-R26)*10000 -> 80 | S29: =(S23-S26)*10000 -> 114 | T29: =(T23-T26)*10000 -> 53 | U29: =(U23-U26)*10000 -> 65
D30: =1/(D28/D29) -> 0.8321377331 | E30: =1/(E28/E29) -> 1.064327485 | F30: 1.146853147 | G30: 0.4963235294 | H30: 1.020992366 | I30: 1.069277108 | J30: 1.155192532 | O30: =1/(O28/O29) -> 0.8321377331 | P30: =1/(P28/P29) -> 0.9895833333 | Q30: 1.608695652 | R30: 0.8105369807 | S30: 1 | T30: 0.6919060052 | U30: 1.056910569
B34: EUR | D34: EURAUD | E34: EURCAD | F34: EURCHF | G34: EURGBP | H34: EURJPY | I34: EURUSD | J34: EURNZD | M34: GBP | O34: EURGBP | P34: GBPCAD | Q34: GBPAUD | R34: GBPNZD | S34: GBPCHF | T34: GBPJPY | U34: GBPUSD
C35: High | D35: =[1]!EURAUD -> 1.2618 | E35: =[1]!EURCAD -> 1.3362 | F35: =[1]!EURCHF -> 1.2334 | G35: =[1]!EURGBP -> 0.866 | H35: =[1]!EURJPY -> 125.81 | I35: =[1]!EURUSD -> 1.3106 | J35: =[1]!EURNZD -> 1.5907 | N35: High | O35: =[1]!EURGBP -> 0.866 | P35: =[1]!GBPCAD -> 1.5479 | Q35: =[1]!GBPAUD -> 1.4621 | R35: =[1]!GBPNZD -> 1.8434 | S35: =[1]!GBPCHF -> 1.4316 | T35: =[1]!GBPJPY -> 145.85 | U35: =[1]!GBPUSD -> 1.5177
A36: Priemer | B36: =SUM(D42:J42)/7 -> 1.154363527 | C36: Ask | D36: =[2]!EURAUD -> 1.2568 | E36: =[2]!EURCAD -> 1.3337 | F36: =[2]!EURCHF -> 1.2276 | G36: =[2]!EURGBP -> 0.8653 | H36: =[2]!EURJPY -> 124.59 | I36: =[2]!EURUSD -> 1.3077 | J36: =[2]!EURNZD -> 1.5815 | L36: Priemer | M36: =SUM(O42:U42)/7 -> 1.211760487 | N36: Ask | O36: =[2]!EURGBP -> 0.8653 | P36: =[2]!GBPCAD -> 1.5415 | Q36: =[2]!GBPAUD -> 1.4531 | R36: =[2]!GBPNZD -> 1.8284 | S36: =[2]!GBPCHF -> 1.4191 | T36: =[2]!GBPJPY -> 144.05 | U36: =[2]!GBPUSD -> 1.5114
C37: Bid | D37: =[3]!EURAUD -> 1.2557 | E37: =[3]!EURCAD -> 1.3328 | F37: =[3]!EURCHF -> 1.2272 | G37: =[3]!EURGBP -> 0.865 | H37: =[3]!EURJPY -> 124.56 | I37: =[3]!EURUSD -> 1.3074 | J37: =[3]!EURNZD -> 1.5791 | N37: Bid | O37: =[3]!EURGBP -> 0.865 | P37: =[3]!GBPCAD -> 1.5401 | Q37: =[3]!GBPAUD -> 1.4512 | R37: =[3]!GBPNZD -> 1.825 | S37: =[3]!GBPCHF -> 1.4184 | T37: =[3]!GBPJPY -> 143.98 | U37: =[3]!GBPUSD -> 1.5111
A38: Min | B38: =MIN(D42:J42) -> 0.8105369807 | C38: Low | D38: =[4]!EURAUD -> 1.2511 | E38: =[4]!EURCAD -> 1.3282 | F38: =[4]!EURCHF -> 1.2255 | G38: =[4]!EURGBP -> 0.8601 | H38: =[4]!EURJPY -> 124.2 | I38: =[4]!EURUSD -> 1.2998 | J38: =[4]!EURNZD -> 1.5766 | L38: Min | M38: =MIN(O42:U42) -> 0.9450171821 | N38: Low | O38: =[4]!EURGBP -> 0.8601 | P38: =[4]!GBPCAD -> 1.5365 | Q38: =[4]!GBPAUD -> 1.4479 | R38: =[4]!GBPNZD -> 1.8218 | S38: =[4]!GBPCHF -> 1.4172 | T38: =[4]!GBPJPY -> 143.78 | U38: =[4]!GBPUSD -> 1.5067
A40: Max | B40: =MAX(D42:J42) -> 1.941031941 | C40: Volatilita | D40: 104.8 | E40: 98.7 | F40: 40.7 | G40: 58.7 | H40: 105.5 | I40: 127 | J40: 152.2 | L40: Max | M40: =MAX(O42:U42) -> 1.984659636 | N40: Volatilita | O40: 58.7 | P40: 114 | Q40: 132.8 | R40: 181.3 | S40: 111.9 | T40: 104.3 | U40: 116.4
C41: Dnes | D41: =(D35-D38)*10000 -> 107 | E41: =(E35-E38)*10000 -> 80 | F41: =(F35-F38)*10000 -> 79 | G41: =(G35-G38)*10000 -> 59 | H41: =(H35-H38)*100 -> 161 | I41: =(I35-I38)*10000 -> 108 | J41: =(J35-J38)*10000 -> 141 | N41: Dnes | O41: =(O35-O38)*10000 -> 59 | P41: =(P35-P38)*10000 -> 114 | Q41: =(Q35-Q38)*10000 -> 142 | R41: =(R35-R38)*10000 -> 216 | S41: =(S35-S38)*10000 -> 144 | T41: =(T35-T38)*100 -> 207 | U41: =(U35-U38)*10000 -> 110
D42: =1/(D40/D41) -> 1.020992366 | E42: 0.8105369807 | F42: 1.941031941 | G42: 1.005110733 | H42: 1.526066351 | I42: 0.8503937008 | J42: 0.926412615 | O42: =1/(O40/O41) -> 1.005110733 | P42: 1 | Q42: 1.069277108 | R42: 1.191395477 | S42: 1.286863271 | T42: 1.984659636 | U42: 0.9450171821
B46: CHF | D46: CADCHF | E46: CHFJPY | F46: EURCHF | G46: GBPCHF | H46: USDCHF | I46: AUDCHF | J46: NZDCHF | M46: JPY | O46: AUDJPY | P46: CADJPY | Q46: CHFJPY | R46: EURJPY | S46: GBPJPY | T46: NZDJPY | U46: USDJPY
C47: High | D47: =[1]!CADCHF -> 0.9267 | E47: =[1]!CHFJPY -> 102.28 | F47: =[1]!EURCHF -> 1.2334 | G47: =[1]!GBPCHF -> 1.4316 | H47: =[1]!USDCHF -> 0.9478 | I47: =[1]!AUDCHF -> 0.9832 | J47: =[1]!NZDCHF -> 0.7779 | N47: High | O47: =[1]!AUDJPY -> 99.84 | P47: =[1]!CADJPY -> 94.34 | Q47: =[1]!CHFJPY -> 102.28 | R47: =[1]!EURJPY -> 125.81 | S47: =[1]!GBPJPY -> 145.85 | T47: =[1]!NZDJPY -> 79.05 | U47: =[1]!USDJPY -> 96.28
A48: Priemer | B48: =SUM(D54:J54)/7 -> 1.199892958 | C48: Ask | D48: =[2]!CADCHF -> 0.9213 | E48: =[2]!CHFJPY -> 101.52 | F48: =[2]!EURCHF -> 1.2276 | G48: =[2]!GBPCHF -> 1.4191 | H48: =[2]!USDCHF -> 0.9389 | I48: =[2]!AUDCHF -> 0.9778 | J48: =[2]!NZDCHF -> 0.7777 | L48: Priemer | M48: =SUM(O54:U54)/7 -> 1.542741825 | N48: Ask | O48: =[2]!AUDJPY -> 99.2 | P48: =[2]!CADJPY -> 93.51 | Q48: =[2]!CHFJPY -> 101.52 | R48: =[2]!EURJPY -> 124.59 | S48: =[2]!GBPJPY -> 144.05 | T48: =[2]!NZDJPY -> 78.9 | U48: =[2]!USDJPY -> 95.31
C49: Bid | D49: =[3]!CADCHF -> 0.9206 | E49: =[3]!CHFJPY -> 101.47 | F49: =[3]!EURCHF -> 1.2272 | G49: =[3]!GBPCHF -> 1.4184 | H49: =[3]!USDCHF -> 0.9386 | I49: =[3]!AUDCHF -> 0.9764 | J49: =[3]!NZDCHF -> 0.7758 | N49: Bid | O49: =[3]!AUDJPY -> 99.16 | P49: =[3]!CADJPY -> 93.42 | Q49: =[3]!CHFJPY -> 101.47 | R49: =[3]!EURJPY -> 124.56 | S49: =[3]!GBPJPY -> 143.98 | T49: =[3]!NZDJPY -> 78.76 | U49: =[3]!USDJPY -> 95.28
A50: Min | B50: =MIN(D54:J54) -> 0.7843137255 | C50: Low | D50: =[4]!CADCHF -> 0.9191 | E50: =[4]!CHFJPY -> 101.25 | F50: =[4]!EURCHF -> 1.2255 | G50: =[4]!GBPCHF -> 1.4172 | H50: =[4]!USDCHF -> 0.9378 | I50: =[4]!AUDCHF -> 0.9733 | J50: =[4]!NZDCHF -> 0.7723 | L50: Min | M50: =MIN(O54:U54) -> 0.8088235294 | N50: Low | O50: =[4]!AUDJPY -> 98.93 | P50: =[4]!CADJPY -> 93.23 | Q50: =[4]!CHFJPY -> 101.25 | R50: =[4]!EURJPY -> 124.2 | S50: =[4]!GBPJPY -> 143.78 | T50: =[4]!NZDJPY -> 78.5 | U50: =[4]!USDJPY -> 95.07
A52: Max | B52: =MAX(D54:J54) -> 1.941031941 | C52: Volatilita | D52: 76.8 | E52: 88 | F52: 40.7 | G52: 111.9 | H52: 93.3 | I52: 85.7 | J52: 71.4 | L52: Max | M52: =MAX(O54:U54) -> 2.636165577 | N52: Volatilita | O52: 85.5 | P52: 69 | Q52: 88 | R52: 105.5 | S52: 104.3 | T52: 68 | U52: 45.9
C53: Dnes | D53: =(D47-D50)*10000 -> 76 | E53: =(E47-E50)*100 -> 103 | F53: =(F47-F50)*10000 -> 79 | G53: =(G47-G50)*10000 -> 144 | H53: =(H47-H50)*10000 -> 100 | I53: =(I47-I50)*10000 -> 99 | J53: =(J47-J50)*10000 -> 56 | N53: Dnes | O53: =(O47-O50)*100 -> 91 | P53: 111 | Q53: 103 | R53: 161 | S53: 207 | T53: 55 | U53: 121
D54: =1/(D52/D53) -> 0.9895833333 | E54: 1.170454545 | F54: 1.941031941 | G54: 1.286863271 | H54: 1.071811361 | I54: 1.155192532 | J54: 0.7843137255 | O54: =1/(O52/O53) -> 1.064327485 | P54: 1.608695652 | Q54: 1.170454545 | R54: 1.526066351 | S54: 1.984659636 | T54: 0.8088235294 | U54: 2.636165577
B58: NZD | D58: GBPNZD | E58: NZDJPY | F58: NZDUSD | G58: EURNZD | H58: NZDCAD | I58: NZDCHF | J58: AUDNZD | M58: USD | O58: AUDUSD | P58: GBPUSD | Q58: NZDUSD | R58: USDCAD | S58: USDCHF | T58: USDJPY | U58: EURUSD
C59: High | D59: =[1]!GBPNZD -> 1.8434 | E59: =[1]!NZDJPY -> 79.05 | F59: =[1]!NZDUSD -> 0.8279 | G59: =[1]!EURNZD -> 1.5907 | H59: =[1]!NZDCAD -> 0.8433 | I59: =[1]!NZDCHF -> 0.7779 | J59: =[1]!AUDNZD -> 1.2642 | N59: High | O59: =[1]!AUDUSD -> 1.0414 | P59: =[1]!GBPUSD -> 1.5177 | Q59: =[1]!NZDUSD -> 0.8279 | R59: =[1]!USDCAD -> 1.0232 | S59: =[1]!USDCHF -> 0.9478 | T59: =[1]!USDJPY -> 96.28 | U59: =[1]!EURUSD -> 1.3106
A60: Priemer | B60: =SUM(D66:J66)/7 -> 0.9909680609 | C60: Ask | D60: =[2]!GBPNZD -> 1.8284 | E60: =[2]!NZDJPY -> 78.9 | F60: =[2]!NZDUSD -> 0.8276 | G60: =[2]!EURNZD -> 1.5815 | H60: =[2]!NZDCAD -> 0.8442 | I60: =[2]!NZDCHF -> 0.7777 | J60: =[2]!AUDNZD -> 1.2595 | L60: Priemer | M60: =SUM(O66:U66)/7 -> 1.10195496 | N60: Ask | O60: =[2]!AUDUSD -> 1.0411 | P60: =[2]!GBPUSD -> 1.5114 | Q60: =[2]!NZDUSD -> 0.8276 | R60: =[2]!USDCAD -> 1.0199 | S60: =[2]!USDCHF -> 0.9389 | T60: =[2]!USDJPY -> 95.31 | U60: =[2]!EURUSD -> 1.3077
C61: Bid | D61: =[3]!GBPNZD -> 1.825 | E61: =[3]!NZDJPY -> 78.76 | F61: =[3]!NZDUSD -> 0.8273 | G61: =[3]!EURNZD -> 1.5791 | H61: =[3]!NZDCAD -> 0.8428 | I61: =[3]!NZDCHF -> 0.7758 | J61: =[3]!AUDNZD -> 1.2566 | N61: Bid | O61: =[3]!AUDUSD -> 1.0408 | P61: =[3]!GBPUSD -> 1.5111 | Q61: =[3]!NZDUSD -> 0.8273 | R61: =[3]!USDCAD -> 1.0196 | S61: =[3]!USDCHF -> 0.9386 | T61: =[3]!USDJPY -> 95.28 | U61: =[3]!EURUSD -> 1.3074
A62: Min | B62: =MIN(D66:J66) -> 0.7843137255 | C62: Low | D62: =[4]!GBPNZD -> 1.8218 | E62: =[4]!NZDJPY -> 78.5 | F62: =[4]!NZDUSD -> 0.8191 | G62: =[4]!EURNZD -> 1.5766 | H62: =[4]!NZDCAD -> 0.8368 | I62: =[4]!NZDCHF -> 0.7723 | J62: =[4]!AUDNZD -> 1.256 | L62: Min | M62: =MIN(O66:U66) -> 0.4963235294 | N62: Low | O62: =[4]!AUDUSD -> 1.036 | P62: =[4]!GBPUSD -> 1.5067 | Q62: =[4]!NZDUSD -> 0.8191 | R62: =[4]!USDCAD -> 1.0179 | S62: =[4]!USDCHF -> 0.9378 | T62: =[4]!USDJPY -> 95.07 | U62: =[4]!EURUSD -> 1.2998
A64: Max | B64: =MAX(D66:J66) -> 1.191395477 | C64: Volatilita | D64: 181.3 | E64: 68 | F64: 86.1 | G64: 152.2 | H64: 61.5 | I64: 71.4 | J64: 71.5 | L64: Max | M64: =MAX(O66:U66) -> 2.636165577 | N64: Volatilita | O64: 108.8 | P64: 116.4 | Q64: 86.1 | R64: 76.6 | S64: 93.3 | T64: 45.9 | U64: 127
C65: Dnes | D65: =(D59-D62)*10000 -> 216 | E65: =(E59-E62)*100 -> 55 | F65: =(F59-F62)*10000 -> 88 | G65: =(G59-G62)*10000 -> 141 | H65: =(H59-H62)*10000 -> 65 | I65: =(I59-I62)*10000 -> 56 | J65: =(J59-J62)*10000 -> 82 | N65: Dnes | O65: =(O59-O62)*10000 -> 54 | P65: =(P59-P62)*10000 -> 110 | Q65: =(Q59-Q62)*10000 -> 88 | R65: =(R59-R62)*10000 -> 53 | S65: =(S59-S62)*10000 -> 100 | T65: =(T59-T62)*100 -> 121 | U65: =(U59-U62)*10000 -> 108
D66: =1/(D64/D65) -> 1.191395477 | E66: 0.8088235294 | F66: 1.022067364 | G66: 0.926412615 | H66: 1.056910569 | I66: 0.7843137255 | J66: 1.146853147 | O66: =1/(O64/O65) -> 0.4963235294 | P66: 0.9450171821 | Q66: 1.022067364 | R66: 0.6919060052 | S66: 1.071811361 | T66: 2.636165577 | U66: 0.8503937008

Sheet Poriadok
A2: 29/2/2012 | C2: aud | D2: CADAUD | E2: JPYAUD | F2: NZDAUD | G2: USDAUD | H2: EURAUD | I2: GBPAUD | J2: CHFAUD | N2: cad | O2: AUDCAD | P2: CHFCAD | Q2: JPYCAD | R2: EURCAD | S2: GBPCAD | T2: USDCAD | U2: NZDCAD
A3: 20:00:00 | D3: =0.9676 -> 0.9676 | E3: =1.04723 -> 1.04723 | F3: =0.7856 -> 0.7856 | G3: =0.9624 -> 0.9624 | H3: 1.2801 | I3: 1.4528 | J3: =1.044 -> 1.044 | O3: 1.0146 | P3: =1.0986 -> 1.0986 | Q3: =1.09649 -> 1.09649 | R3: 1.3325 | S3: 1.5429 | T3: 1.0255 | U3: 0.83502
C5: eur | D5: AUDEUR | E5: CADEUR | F5: CHFEUR | G5: GBPEUR | H5: JPYEUR | I5: USDEUR | J5: NZDEUR | N5: gbp | O5: EURGBP | P5: CADGBP | Q5: AUDGBP | R5: NZDGBP | S5: CHFGBP | T5: JPYGBP | U5: USDGBP
D6: =0.773 -> 0.773 | E6: =0.7378 -> 0.7378 | F6: =0.8218 -> 0.8218 | G6: 1.1405 | H6: =0.8284 -> 0.8284 | I6: =0.7434 -> 0.7434 | J6: 0.628 | O6: 0.868 | P6: =0.6238 -> 0.6238 | Q6: =0.6891 -> 0.6891 | R6: =0.5087 -> 0.5087 | S6: =0.6591 -> 0.6591 | T6: =0.6982 -> 0.6982 | U6: =0.6525 -> 0.6525
C8: chf | D8: CADCHF | E8: JPYCHF | F8: EURCHF | G8: GBPCHF | H8: USDCHF | I8: AUDCHF | J8: NZDCHF | N8: jpy | O8: AUDJPY | P8: CADJPY | Q8: CHFJPY | R8: EURJPY | S8: GBPJPY | T8: NZDJPY | U8: USDJPY
D9: 0.9529 | E9: =0.98 -> 0.98 | F9: 1.2471 | G9: 1.4465 | H9: 0.9469 | I9: 0.933 | J9: 0.7492 | O9: 0.9704 | P9: 0.9239 | Q9: 1.0083 | R9: 1.2487 | S9: 1.4081 | T9: 0.7419 | U9: 0.9365
C11: nzd | D11: GBPNZD | E11: JPYNZD | F11: USDNZD | G11: EURNZD | H11: CADNZD | I11: CHFNZD | J11: AUDNZD | N11: usd | O11: AUDUSD | P11: GBPUSD | Q11: NZDUSD | R11: CADUSD | S11: CHFUSD | T11: JPYUSD | U11: EURUSD
D12: 1.7942 | E12: 1.2631 | F12: =1.1907 -> 1.1907 | G12: 1.5555 | H12: 1.1863 | I12: =1.3168 -> 1.3168 | J12: 1.2685 | O12: 1.0173 | P12: 1.5302 | Q12: 0.8095 | R12: =0.9774 -> 0.9774 | S12: =1.0861 -> 1.0861 | T12: =1.037 -> 1.037 | U12: 1.3027
A16: Aktuálny kurz | B16: AUD | D16: CADAUD | E16: JPYAUD | F16: NZDAUD | G16: USDAUD | H16: EURAUD | I16: GBPAUD | J16: CHFAUD | K16: pv | M16: CAD | O16: AUDCAD | P16: CHFCAD | Q16: JPYCAD | R16: EURCAD | S16: GBPCAD | T16: USDCAD | U16: NZDCAD | V16: pv
C17: Ask | D17: =1/[2]!AUDCAD -> 0.9418856551 | E17: =1/[2]!AUDJPY*100 -> 1.008064516 | F17: =1/[2]!AUDNZD -> 0.7939658595 | G17: =1/[2]!AUDUSD -> 0.9605225243 | H17: =[2]!EURAUD -> 1.2568 | I17: =[2]!GBPAUD -> 1.4531 | J17: =1/[2]!AUDCHF -> 1.022704029 | K17: =(0.0001/G19)*10000 -> 1.040949978 | N17: Ask | O17: =[2]!AUDCAD -> 1.0617 | P17: =1/[2]!CADCHF -> 1.085422772 | Q17: =1/[2]!CADJPY*100 -> 1.069404342 | R17: =[2]!EURCAD -> 1.3337 | S17: =[2]!GBPCAD -> 1.5415 | T17: =[2]!USDCAD -> 1.0199 | U17: =[2]!NZDCAD -> 0.8442 | V17: =(0.0001/T19)*10000 -> 0.980632508
C18: Bid | D18: =1/[3]!AUDCAD -> 0.9426847662 | E18: =1/[3]!AUDJPY*100 -> 1.008471158 | F18: =1/[3]!AUDNZD -> 0.7957981856 | G18: =1/[3]!AUDUSD -> 0.9607993851 | H18: =[3]!EURAUD -> 1.2557 | I18: =[3]!GBPAUD -> 1.4512 | J18: =1/[3]!AUDCHF -> 1.024170422 | N18: Bid | O18: =[3]!AUDCAD -> 1.0608 | P18: =1/[3]!CADCHF -> 1.086248099 | Q18: =1/[3]!CADJPY*100 -> 1.070434596 | R18: =[3]!EURCAD -> 1.3328 | S18: =[3]!GBPCAD -> 1.5401 | T18: =[3]!USDCAD -> 1.0196 | U18: =[3]!NZDCAD -> 0.8428
C19: Priemer | D19: =(D17+D18)/2 -> 0.9422852106 | E19: =(E17+E18)/2 -> 1.008267837 | F19: 0.7948820225 | G19: 0.9606609547 | H19: 1.25625 | I19: 1.45215 | J19: 1.023437226 | N19: Priemer | O19: =(O17+O18)/2 -> 1.06125 | P19: =(P17+P18)/2 -> 1.085835436 | Q19: 1.069919469 | R19: 1.33325 | S19: 1.5408 | T19: 1.01975 | U19: 0.8435
C20: spread | D20: =ABS(D17-D18)*10000 -> 7.991111327 | E20: =ABS(E17-E18)*10000 -> 4.066415959 | F20: 18.32326112 | G20: 2.768608352 | H20: 11 | I20: 19 | J20: 14.66392504 | K20: =SUM(D20:J20) -> 77.8133218 | N20: spread | O20: =ABS(O17-O18)*10000 -> 9 | P20: =ABS(P17-P18)*10000 -> 8.253268961 | Q20: 10.30254665 | R20: 9 | S20: 14 | T20: 3 | U20: 14 | V20: =SUM(O20:U20) -> 67.55581561
B22: EUR | D22: AUDEUR | E22: CADEUR | F22: CHFEUR | G22: GBPEUR | H22: JPYEUR | I22: USDEUR | J22: NZDEUR | K22: pv | M22: GBP | O22: EURGBP | P22: CADGBP | Q22: AUDGBP | R22: NZDGBP | S22: CHFGBP | T22: JPYGBP | U22: USDGBP | V22: pv
C23: Ask | D23: =1/[2]!EURAUD -> 0.7956715468 | E23: =1/[2]!EURCAD -> 0.7497938067 | F23: =1/[2]!EURCHF -> 0.8145975888 | G23: =1/[2]!EURGBP -> 1.155668554 | H23: =1/[2]!EURJPY*100 -> 0.802632635 | I23: =1/[2]!EURUSD -> 0.7647013841 | J23: =1/[2]!EURNZD -> 0.6323110971 | K23: =(0.0001/I25)*10000 -> 1.307549983 | N23: Ask | O23: =[2]!EURGBP -> 0.8653 | P23: =1/[2]!GBPCAD -> 0.6487187804 | Q23: =1/[2]!GBPAUD -> 0.6881838827 | R23: =1/[2]!GBPNZD -> 0.5469262743 | S23: =1/[2]!GBPCHF -> 0.7046719752 | T23: =1/[2]!GBPJPY*100 -> 0.6942034016 | U23: =1/[2]!GBPUSD -> 0.6616382162 | V23: =(0.0001/U25)*10000 -> 1.511249985
C24: Bid | D24: =1/[3]!EURAUD -> 0.7963685594 | E24: =1/[3]!EURCAD -> 0.75030012 | F24: =1/[3]!EURCHF -> 0.814863103 | G24: =1/[3]!EURGBP -> 1.156069364 | H24: =1/[3]!EURJPY*100 -> 0.8028259473 | I24: =1/[3]!EURUSD -> 0.7648768548 | J24: =1/[3]!EURNZD -> 0.633272117 | N24: Bid | O24: =[3]!EURGBP -> 0.865 | P24: =1/[3]!GBPCAD -> 0.6493084865 | Q24: =1/[3]!GBPAUD -> 0.6890848953 | R24: =1/[3]!GBPNZD -> 0.5479452055 | S24: =1/[3]!GBPCHF -> 0.7050197406 | T24: =1/[3]!GBPJPY*100 -> 0.6945409085 | U24: =1/[3]!GBPUSD -> 0.6617695718
C25: Priemer | D25: =(D23+D24)/2 -> 0.7960200531 | E25: =(E23+E24)/2 -> 0.7500469634 | F25: 0.8147303459 | G25: 1.155868959 | H25: 0.8027292912 | I25: 0.7647891195 | J25: 0.632791607 | N25: Priemer | O25: =(O23+O24)/2 -> 0.86515 | P25: =(P23+P24)/2 -> 0.6490136334 | Q25: 0.688634389 | R25: 0.5474357399 | S25: 0.7048458579 | T25: 0.694372155 | U25: 0.661703894
C26: spread | D26: =ABS(D23-D24)*10000 -> 6.970125838 | E26: =ABS(E23-E24)*10000 -> 5.063133449 | F26: 2.655142076 | G26: 4.008099032 | H26: 1.933122917 | I26: 1.754707169 | J26: 9.610199689 | K26: =SUM(D26:J26) -> 31.99453017 | N26: spread | O26: =ABS(O23-O24)*10000 -> 3 | P26: =ABS(P23-P24)*10000 -> 5.897060532 | Q26: 9.010125256 | R26: 10.18931141 | S26: 3.477653572 | T26: 3.375068628 | U26: 1.313556117 | V26: =SUM(O26:U26) -> 36.26277552
B28: CHF | D28: CADCHF | E28: JPYCHF | F28: EURCHF | G28: GBPCHF | H28: USDCHF | I28: AUDCHF | J28: NZDCHF | K28: pv | M28: JPY | O28: AUDJPY | P28: CADJPY | Q28: CHFJPY | R28: EURJPY | S28: GBPJPY | T28: NZDJPY | U28: USDJPY | V28: pv
C29: Ask | D29: =[2]!CADCHF -> 0.9213 | E29: =1/[2]!CHFJPY*100 -> 0.9850275808 | F29: =[2]!EURCHF -> 1.2276 | G29: =[2]!GBPCHF -> 1.4191 | H29: =[2]!USDCHF -> 0.9389 | I29: =[2]!AUDCHF -> 0.9778 | J29: =[2]!NZDCHF -> 0.7777 | K29: =(0.0001/H31)*10000 -> 1.065246338 | N29: Ask | O29: =[2]!AUDJPY/100 -> 0.992 | P29: =[2]!CADJPY/100 -> 0.9351 | Q29: =[2]!CHFJPY/100 -> 1.0152 | R29: =[2]!EURJPY/100 -> 1.2459 | S29: =[2]!GBPJPY/100 -> 1.4405 | T29: =[2]!NZDJPY/100 -> 0.789 | U29: =[2]!USDJPY/100 -> 0.9531 | V29: =(0.0001/U31)*10000 -> 1.049373
C30: Bid | D30: =[3]!CADCHF -> 0.9206 | E30: =1/[3]!CHFJPY*100 -> 0.9855129595 | F30: =[3]!EURCHF -> 1.2272 | G30: =[3]!GBPCHF -> 1.4184 | H30: =[3]!USDCHF -> 0.9386 | I30: =[3]!AUDCHF -> 0.9764 | J30: =[3]!NZDCHF -> 0.7758 | N30: Bid | O30: =[3]!AUDJPY/100 -> 0.9916 | P30: =[3]!CADJPY/100 -> 0.9342 | Q30: =[3]!CHFJPY/100 -> 1.0147 | R30: =[3]!EURJPY/100 -> 1.2456 | S30: =[3]!GBPJPY/100 -> 1.4398 | T30: =[3]!NZDJPY/100 -> 0.7876 | U30: =[3]!USDJPY/100 -> 0.9528
C31: Priemer | D31: =(D29+D30)/2 -> 0.92095 | E31: =(E29+E30)/2 -> 0.9852702701 | F31: 1.2274 | G31: 1.41875 | H31: 0.93875 | I31: 0.9771 | J31: 0.77675 | N31: Priemer | O31: =(O29+O30)/2 -> 0.9918 | P31: =(P29+P30)/2 -> 0.93465 | Q31: 1.01495 | R31: 1.24575 | S31: 1.44015 | T31: 0.7883 | U31: 0.95295
C32: spread | D32: =ABS(D29-D30)*10000 -> 7 | E32: =ABS(E29-E30)*10000 -> 4.853787232 | F32: 4 | G32: 7 | H32: 3 | I32: 14 | J32: 19 | K32: =SUM(D32:J32) -> 58.85378723 | N32: spread | O32: =ABS(O29-O30)*10000 -> 4 | P32: =ABS(P29-P30)*10000 -> 9 | Q32: 5 | R32: 3 | S32: 7 | T32: 14 | U32: 3 | V32: =SUM(O32:U32) -> 45
B34: NZD | D34: GBPNZD | E34: JPYNZD | F34: USDNZD | G34: EURNZD | H34: CADNZD | I34: CHFNZD | J34: AUDNZD | K34: pv | M34: USD | O34: AUDUSD | P34: GBPUSD | Q34: NZDUSD | R34: CADUSD | S34: CHFUSD | T34: JPYUSD | U34: EURUSD | V34: pv
C35: Ask | D35: =[2]!GBPNZD -> 1.8284 | E35: =1/[2]!NZDJPY*100 -> 1.267427123 | F35: =1/[2]!NZDUSD -> 1.208313195 | G35: =[2]!EURNZD -> 1.5815 | H35: =1/[2]!NZDCAD -> 1.184553423 | I35: =1/[2]!NZDCHF -> 1.28584287 | J35: =[2]!AUDNZD -> 1.2595 | K35: =(0.0001/F37)*10000 -> 0.8274499728 | N35: Ask | O35: =[2]!AUDUSD -> 1.0411 | P35: =[2]!GBPUSD -> 1.5114 | Q35: =[2]!NZDUSD -> 0.8276 | R35: =1/[2]!USDCAD -> 0.9804882832 | S35: =1/[2]!USDCHF -> 1.065076153 | T35: =1/[2]!USDJPY*100 -> 1.049207848 | U35: =[2]!EURUSD -> 1.3077 | V35: 1
C36: Bid | D36: =[3]!GBPNZD -> 1.825 | E36: =1/[3]!NZDJPY*100 -> 1.269680041 | F36: =1/[3]!NZDUSD -> 1.20875136 | G36: =[3]!EURNZD -> 1.5791 | H36: =1/[3]!NZDCAD -> 1.18652112 | I36: =1/[3]!NZDCHF -> 1.288992008 | J36: =[3]!AUDNZD -> 1.2566 | N36: Bid | O36: =[3]!AUDUSD -> 1.0408 | P36: =[3]!GBPUSD -> 1.5111 | Q36: =[3]!NZDUSD -> 0.8273 | R36: =1/[3]!USDCAD -> 0.9807767752 | S36: =1/[3]!USDCHF -> 1.065416578 | T36: =1/[3]!USDJPY*100 -> 1.049538203 | U36: =[3]!EURUSD -> 1.3074
C37: Priemer | D37: =(D35+D36)/2 -> 1.8267 | E37: =(E35+E36)/2 -> 1.268553582 | F37: 1.208532277 | G37: 1.5803 | H37: 1.185537272 | I37: 1.287417439 | J37: 1.25805 | N37: Priemer | O37: =(O35+O36)/2 -> 1.04095 | P37: =(P35+P36)/2 -> 1.51125 | Q37: 0.82745 | R37: 0.9806325292 | S37: 1.065246365 | T37: 1.049373026 | U37: 1.30755
C38: spread | D38: =ABS(D35-D36)*10000 -> 34 | E38: =ABS(E35-E36)*10000 -> 22.52917689 | F38: 4.381650652 | G38: 24 | H38: 19.67696717 | I38: 31.49138248 | J38: 29 | K38: =SUM(D38:J38) -> 165.0791772 | N38: spread | O38: =ABS(O35-O36)*10000 -> 3 | P38: =ABS(P35-P36)*10000 -> 3 | Q38: 3 | R38: 2.884920409 | S38: 3.40424937 | T38: 3.303551159 | U38: 3 | V38: =SUM(O38:U38) -> 21.59272094
A41: Rozdiely | C41: aud | D41: CADAUD | E41: JPYAUD | F41: NZDAUD | G41: USDAUD | H41: EURAUD | I41: GBPAUD | J41: CHFAUD | N41: cad | O41: AUDCAD | P41: CHFCAD | Q41: JPYCAD | R41: EURCAD | S41: GBPCAD | T41: USDCAD | U41: NZDCAD
C42: =(D42+E42+F42+G42+H42+I42+J42) -> 1017.967495 | D42: =((D3-D19))*10000 -> 253.1478935 | E42: =((E3-E19))*10000 -> 389.6216307 | F42: -92.82022524 | G42: 17.39045329 | H42: 238.5 | I42: 6.5 | J42: 205.6277429 | N42: =O42+P42+Q42+R42+S42+T42+U42 -> -86.94904732 | O42: =(O3-O19)*10000 -> -466.5 | P42: =(P3-P19)*10000 -> 127.6456438 | Q42: 265.7053089 | R42: -7.5 | S42: 21 | T42: 57.5 | U42: -84.8
C44: eur | D44: AUDEUR | E44: CADEUR | F44: CHFEUR | G44: GBPEUR | H44: JPYEUR | I44: USDEUR | J44: NZDEUR | N44: gbp | O44: EURGBP | P44: CADGBP | Q44: AUDGBP | R44: NZDGBP | S44: CHFGBP | T44: JPYGBP | U44: USDGBP
C45: =D45+E45+F45+G45+H45+I45+J45 -> -440.7633926 | D45: =((D6-D25))*10000 -> -230.2005308 | E45: =((E6-E25))*10000 -> -122.4696338 | F45: =((F6-F25))*10000 -> 70.69654105 | G45: -153.6895921 | H45: 256.7070881 | I45: -213.8911947 | J45: -47.91607044 | N45: =O45+P45+Q45+R45+S45+T45+U45 -> -1117.556693 | O45: =(O6-O25)*10000 -> 28.5 | P45: =(P6-P25)*10000 -> -252.1363344 | Q45: 4.656110037 | R45: -387.3573991 | S45: -457.4585787 | T45: 38.27844972 | U45: -92.03894029
C47: chf | D47: CADCHF | E47: JPYCHF | F47: EURCHF | G47: GBPCHF | H47: USDCHF | I47: AUDCHF | J47: NZDCHF | N47: jpy | O47: AUDJPY | P47: CADJPY | Q47: CHFJPY | R47: EURJPY | S47: GBPJPY | T47: NZDJPY | U47: USDJPY
C48: =D48+E48+F48+G48+H48+I48+J48 -> 106.2972987 | D48: =(D9-D31)*10000 -> 319.5 | E48: =(E9-E31)*10000 -> -52.70270134 | F48: 197 | G48: 277.5 | H48: 81.5 | I48: -441 | J48: -275.5 | N48: =O48+P48+Q48+R48+S48+T48+U48 -> -1307.5 | O48: =(O9-O31)*10000 -> -214 | P48: =(P9-P31)*10000 -> -107.5 | Q48: -66.5 | R48: 29.5 | S48: -320.5 | T48: -464 | U48: -164.5
C50: nzd | D50: GBPNZD | E50: JPYNZD | F50: USDNZD | G50: EURNZD | H50: CADNZD | I50: CHFNZD | J50: AUDNZD | N50: usd | O50: AUDUSD | P50: GBPUSD | Q50: NZDUSD | R50: CADUSD | S50: CHFUSD | T50: JPYUSD | U50: EURUSD
C51: =D51+E51+F51+G51+H51+I51+J51 -> -399.9056994 | D51: =(D12-D37)*10000 -> -325 | E51: =(E12-E37)*10000 -> -54.53581785 | F51: -178.3227731 | G51: -248 | H51: 7.627282823 | I51: 293.8256087 | J51: 104.5 | N51: =O51+P51+Q51+R51+S51+T51+U51 -> -222.5192023 | O51: =(O12-O37)*10000 -> -236.5 | P51: =(P12-P37)*10000 -> 189.5 | Q51: -179.5 | R51: -32.32529185 | S51: 208.5363459 | T51: -123.7302563 | U51: -48.5
W53: =-1 -> -1
W54: 1
C55: aud | D55: eur | E55: chf | F55: nzd | G55: cad | H55: gbp | I55: jpy | J55: usd | K55: AVG | L55: SUM | N55: aud | O55: eur | P55: chf | Q55: nzd | R55: cad | S55: gbp | T55: jpy | U55: usd
C56: =C42*K17 -> 1059.653242 | D56: =C45*K23 -> -576.3201664 | E56: =C48*K29 -> 113.2328082 | F56: =C51*K35 -> -330.9019601 | G56: =N42*V17 -> -85.26506234 | H56: =N45*V23 -> -1688.907535 | I56: =N48*V29 -> -1372.055197 | J56: =N51*V35 -> -222.5192023 | K56: =(C56+D56+E56+F56+G56+H56+I56+J56)/8 -> -387.8853841 | L56: =SUM(C56:J56) -> -3103.083073 | N56: =ABS(C56) -> 1059.653242 | O56: 576.3201664 | P56: 113.2328082 | Q56: 330.9019601 | R56: 85.26506234 | S56: 1688.907535 | T56: 1372.055197 | U56: 222.5192023 | V56: =SUM(N56:U56) -> 5448.855174
B57: MAX | C57: 0.2452604868 | D57: -0.1671617282 | E57: -0.1772018866 | F57: 0.003233203288 | G57: 0.1257911469 | H57: 0.1230044498 | I57: 0.2458640773 | J57: 0.125001417 | N57: =N56/$V$56 -> 0.1944726385 | O57: =O56/$V$56 -> 0.1057690374 | P57: 0.02078102731 | Q57: 0.06072871265 | R57: 0.01564825264 | S57: 0.3099564003 | T57: 0.2518061415 | U57: 0.04083778981
B58: MIN | C58: 0.01039161848 | D58: -0.2513482416 | E58: -0.2341670137 | F58: -0.03898927849 | G58: 0.0428435167 | H58: 0.02579608793 | I58: 0.06532584088 | J58: -0.164919241 | N58: =(N57/25)*100 -> 0.7778905538 | O58: =(O57/25)*100 -> 0.4230761494 | P58: 0.08312410923 | Q58: 0.2429148506 | R58: 0.06259301054 | S58: 1.239825601 | T58: 1.007224566 | U58: 0.1633511593
C59: =IF(C56<0,N57*$W$53,N57*$W$54) -> 0.1944726385 | D59: -0.1057690374 | E59: 0.02078102731 | F59: -0.06072871265 | G59: -0.01564825264 | H59: -0.3099564003 | I59: -0.2518061415 | J59: -0.04083778981 | K59: =(C59+D59+E59+F59+G59+H59+I59+J59)/8 -> -0.07118658356
C60: =IF(C56<0,N58*$W$53,N58*$W$54) -> 0.7778905538 | D60: -0.4230761494 | E60: 0.08312410923 | F60: -0.2429148506 | G60: -0.06259301054 | H60: -1.239825601 | I60: -1.007224566 | J60: -0.1633511593
B278: AUDCAD | C278: AUDJPY | D278: AUDNZD | E278: AUDUSD | F278: CADCHF | G278: CADJPY | H278: CHFJPY | I278: EURAUD | J278: EURCAD | K278: EURCHF | L278: EURGBP | M278: EURJPY | N278: GBPCAD | O278: GBPAUD | P278: GBPNZD | Q278: GBPCHF | R278: GBPJPY | S278: GBPUSD | T278: NZDJPY | U278: NZDUSD | V278: USDCAD | W278: USDCHF | X278: USDJPY | Y278: AUDCHF | Z278: EURUSD | AA278: EURNZD | AB278: NZDCAD | AC278: NZDCHF
B279: =C56 -> 1059.653242 | C279: =C56 -> 1059.653242 | D279: =C56 -> 1059.653242 | E279: =C56 -> 1059.653242 | F279: =E56 -> 113.2328082 | G279: =G56 -> -85.26506234 | H279: =E56 -> 113.2328082 | I279: =C56 -> 1059.653242 | J279: =G56 -> -85.26506234 | K279: =E56 -> 113.2328082 | L279: =H56 -> -1688.907535 | M279: =I56 -> -1372.055197 | N279: =G56 -> -85.26506234 | O279: =C56 -> 1059.653242 | P279: =H56 -> -1688.907535 | Q279: =E56 -> 113.2328082 | R279: =I56 -> -1372.055197 | S279: =J56 -> -222.5192023 | T279: =I56 -> -1372.055197 | U279: =J56 -> -222.5192023 | V279: =G56 -> -85.26506234 | W279: =E56 -> 113.2328082 | X279: =I56 -> -1372.055197 | Y279: =C56 -> 1059.653242 | Z279: =J56 -> -222.5192023 | AA279: =F56 -> -330.9019601 | AB279: =F56 -> -330.9019601 | AC279: =E56 -> 113.2328082
B280: =G56 -> -85.26506234 | C280: =I56 -> -1372.055197 | D280: =F56 -> -330.9019601 | E280: =J56 -> -222.5192023 | F280: =G56 -> -85.26506234 | G280: =I56 -> -1372.055197 | H280: =I56 -> -1372.055197 | I280: =D56 -> -576.3201664 | J280: =D56 -> -576.3201664 | K280: =D56 -> -576.3201664 | L280: =D56 -> -576.3201664 | M280: =D56 -> -576.3201664 | N280: =H56 -> -1688.907535 | O280: =H56 -> -1688.907535 | P280: =F56 -> -330.9019601 | Q280: =H56 -> -1688.907535 | R280: =H56 -> -1688.907535 | S280: =H56 -> -1688.907535 | T280: =F56 -> -330.9019601 | U280: =F56 -> -330.9019601 | V280: =J56 -> -222.5192023 | W280: =J56 -> -222.5192023 | X280: =J56 -> -222.5192023 | Y280: =E56 -> 113.2328082 | Z280: =D56 -> -576.3201664 | AA280: =D56 -> -576.3201664 | AB280: =G56 -> -85.26506234 | AC280: =F56 -> -330.9019601
B281: =ABS(B279)/(ABS(B279)+ABS(B280)) -> 0.925527383 | C281: =ABS(C279)/(ABS(C279)+ABS(C280)) -> 0.4357649236 | D281: 0.7620360849 | E281: 0.8264514237 | F281: 0.5704484783 | G281: 0.05850811569 | H281: 0.07623626379 | I281: 0.6477203337 | J281: 0.1288799366 | K281: 0.1642119059 | L281: 0.7455795874 | M281: 0.7042047558 | N281: 0.04805905719 | O281: 0.3855302204 | P281: 0.8361716979 | Q281: 0.06283240291 | R281: 0.4482430258 | S281: 0.11641524 | T281: 0.8056897916 | U281: 0.4020793158 | V281: 0.2770286598 | W281: 0.3372513183 | X281: 0.8604522922 | Y281: 0.9034579633 | Z281: 0.2785531247 | AA281: 0.3647419418 | AB281: 0.7951181671 | AC281: 0.2549514613
B282: =ABS(B280)/(ABS(B279)+ABS(B280)) -> 0.07447261695 | C282: =ABS(C280)/(ABS(C279)+ABS(C280)) -> 0.5642350764 | D282: 0.2379639151 | E282: 0.1735485763 | F282: 0.4295515217 | G282: 0.9414918843 | H282: 0.9237637362 | I282: 0.3522796663 | J282: 0.8711200634 | K282: 0.8357880941 | L282: 0.2544204126 | M282: 0.2957952442 | N282: 0.9519409428 | O282: 0.6144697796 | P282: 0.1638283021 | Q282: 0.9371675971 | R282: 0.5517569742 | S282: 0.88358476 | T282: 0.1943102084 | U282: 0.5979206842 | V282: 0.7229713402 | W282: 0.6627486817 | X282: 0.1395477078 | Y282: 0.09654203674 | Z282: 0.7214468753 | AA282: 0.6352580582 | AB282: 0.2048818329 | AC282: 0.7450485387
B283: =IF($C$56<0,B281*$W$53,B281*$W$54) -> 0.925527383 | C283: =IF($C$56<0,C281*$W$53,C281*$W$54) -> 0.4357649236 | D283: =IF($C$56<0,D281*$W$53,D281*$W$54) -> 0.7620360849 | E283: 0.8264514237 | F283: =IF($E$56<0,F281*$W$53,F281*$W$54) -> 0.5704484783 | G283: =IF($G$56<0,G281*$W$53,G281*$W$54) -> -0.05850811569 | H283: =IF($E$56<0,H281*$W$53,H281*$W$54) -> 0.07623626379 | I283: =IF($C$56<0,I281*$W$53,I281*$W$54) -> 0.6477203337 | J283: =IF($G$56<0,J281*$W$53,J281*$W$54) -> -0.1288799366 | K283: =IF($E$56<0,K281*$W$53,K281*$W$54) -> 0.1642119059 | L283: =IF($H$56<0,L281*$W$53,L281*$W$54) -> -0.7455795874 | M283: =IF($I$56<0,M281*$W$53,M281*$W$54) -> -0.7042047558 | N283: =IF($G$56<0,N281*$W$53,N281*$W$54) -> -0.04805905719 | O283: =IF($C$56<0,O281*$W$53,O281*$W$54) -> 0.3855302204 | P283: =IF($H$56<0,P281*$W$53,P281*$W$54) -> -0.8361716979 | Q283: =IF($E$56<0,Q281*$W$53,Q281*$W$54) -> 0.06283240291 | R283: =IF($I$56<0,R281*$W$53,R281*$W$54) -> -0.4482430258 | S283: =IF($J$56<0,S281*$W$53,S281*$W$54) -> -0.11641524 | T283: =IF($I$56<0,T281*$W$53,T281*$W$54) -> -0.8056897916 | U283: =IF($J$56<0,U281*$W$53,U281*$W$54) -> -0.4020793158 | V283: =IF($G$56<0,V281*$W$53,V281*$W$54) -> -0.2770286598 | W283: =IF($E$56<0,W281*$W$53,W281*$W$54) -> 0.3372513183 | X283: =IF($I$56<0,X281*$W$53,X281*$W$54) -> -0.8604522922 | Y283: =IF($C$56<0,Y281*$W$53,Y281*$W$54) -> 0.9034579633 | Z283: =IF($J$56<0,Z281*$W$53,Z281*$W$54) -> -0.2785531247 | AA283: =IF($F$56<0,AA281*$W$53,AA281*$W$54) -> -0.3647419418 | AB283: =IF($F$56<0,AB281*$W$53,AB281*$W$54) -> -0.7951181671 | AC283: =IF($E$56<0,AC281*$W$53,AC281*$W$54) -> 0.2549514613
B284: =IF($G$56<0,B282*$W$53,B282*$W$54) -> -0.07447261695 | C284: =IF($I$56<0,C282*$W$53,C282*$W$54) -> -0.5642350764 | D284: =IF($F$56<0,D282*$W$53,D282*$W$54) -> -0.2379639151 | E284: =IF($J$56<0,E282*$W$53,E282*$W$54) -> -0.1735485763 | F284: =IF($G$56<0,F282*$W$53,F282*$W$54) -> -0.4295515217 | G284: =IF($I$56<0,G282*$W$53,G282*$W$54) -> -0.9414918843 | H284: =IF($I$56<0,H282*$W$53,H282*$W$54) -> -0.9237637362 | I284: =IF($D$56<0,I282*$W$53,I282*$W$54) -> -0.3522796663 | J284: =IF($D$56<0,J282*$W$53,J282*$W$54) -> -0.8711200634 | K284: -0.8357880941 | L284: -0.2544204126 | M284: -0.2957952442 | N284: =IF($H$56<0,N282*$W$53,N282*$W$54) -> -0.9519409428 | O284: =IF($H$56<0,O282*$W$53,O282*$W$54) -> -0.6144697796 | P284: =IF($F$56<0,P282*$W$53,P282*$W$54) -> -0.1638283021 | Q284: =IF($H$56<0,Q282*$W$53,Q282*$W$54) -> -0.9371675971 | R284: =IF($H$56<0,R282*$W$53,R282*$W$54) -> -0.5517569742 | S284: =IF($H$56<0,S282*$W$53,S282*$W$54) -> -0.88358476 | T284: =IF($F$56<0,T282*$W$53,T282*$W$54) -> -0.1943102084 | U284: -0.5979206842 | V284: =IF($J$56<0,V282*$W$53,V282*$W$54) -> -0.7229713402 | W284: =IF($J$56<0,W282*$W$53,W282*$W$54) -> -0.6627486817 | X284: -0.1395477078 | Y284: =IF($E$56<0,Y282*$W$53,Y282*$W$54) -> 0.09654203674 | Z284: =IF($D$56<0,Z282*$W$53,Z282*$W$54) -> -0.7214468753 | AA284: =IF($D$56<0,AA282*$W$53,AA282*$W$54) -> -0.6352580582 | AB284: =IF($G$56<0,AB282*$W$53,AB282*$W$54) -> -0.2048818329 | AC284: =IF($F$56<0,AC282*$W$53,AC282*$W$54) -> -0.7450485387
B288: IF(C56<0;N57*$W$53;N57*$W$54)
